Cogmind - Beta 13 @@@ ROGUE MODE // 2024.04.17 @ 20:53:42 Player: Calliope Result: Destroyed by G-47 Trooper with Particle Gun Performance ------------- Evolutions (2) 1000 Regions Visited (4) 800 Robots Destroyed (71) 355 Value Destroyed (1642) 1642 Prototype IDs (5) 100 Alien Tech Used (0) 0 Bonus (106) 106 TOTAL SCORE: 4003 Bonus ------- High Alert Combat Kills 106 Cogmind --------- Core Integrity 0/550 Matter 300/300 Energy 100/100 System Corruption 0% Temperature Cool (9) Movement Core (50) Location -8/Storage Parts ------- > --- POWER (1) -------- (None) > --- PROPULSION (3) --- (None) > --- UTILITY (5) ------ Signal Interpreter Hacking Suite > --- WEAPON (2) ------- (None) > --- INVENTORY (5) ---- Improved Flight Unit Improved Flight Unit Advanced Beam Rifle Blade Saw Peak State ------------ > --- POWER ------------ (None) > --- PROPULSION ------- Improved Flight Unit Surge Thruster Surge Thruster > --- UTILITY ---------- Structural Scanner Signal Interpreter ECM Suite Hacking Suite Authchip [Processor] > --- WEAPON ----------- Advanced Beam Rifle Advanced Beam Rifle > --- INVENTORY -------- Improved Flight Unit Improved Flight Unit Blade Saw [Rating: 27] Favorites ----------- Power Ion Engine Engine Ion Engine Power Core Light Nuclear Core Propulsion Light Treads Treads Light Treads Leg Aluminum Leg Hover Unit Improved Hover Unit Flight Unit Surge Thruster Utility Large Storage Unit Device Structural Scanner Storage Large Storage Unit Processor Signal Interpreter Hackware Authchip [Processor] Weapon Shotgun Energy Gun Medium Laser Energy Cannon Advanced Beam Cannon Ballistic Gun Shotgun Launcher Rocket Launcher Slashing Weapon Blade Saw Special Melee Weapon Datajack Build | -11 -10 -9 -8 -8 ------- Run | Yrd Mat Mat Mat Sto Slots Evolved 4 | . . 2 2 . Power . | . . . . . Propulsion 1 | . . . 1 . Utility 3 | . . 2 1 . Weapon . | . . . . . Parts Attached 64 | 6 12 29 11 6 Power 9 | 1 3 3 2 . Engine 7 | 1 3 2 1 . Core 2 | . . 1 1 . Reactor . | . . . . . Propulsion 19 | 2 2 11 4 . Treads 10 | 2 2 6 . . Leg 3 | . . 2 1 . Wheel . | . . . . . Hover 2 | . . 2 . . Flight 4 | . . 1 3 . Utility 12 | 1 3 4 3 1 Device 4 | . 1 1 2 . Storage 2 | 1 1 . . . Processor 4 | . 1 2 1 . Hackware 2 | . . 1 . 1 Protection . | . . . . . Artifact . | . . . . . Weapon 24 | 2 4 11 2 5 Energy Gun 15 | 2 2 6 . 5 Energy Cannon 1 | . . 1 . . Ballistic Gun 3 | . 2 1 . . Ballistic Cannon . | . . . . . Launcher 3 | . . 2 1 . Special Weapon . | . . . . . Impact Weapon . | . . . . . Slashing Weapon 1 | . . . 1 . Piercing Weapon . | . . . . . Special Melee Weapon 1 | . . 1 . . Unidentified Prototypes 5 | . . 4 . 1 Parts Lost 21 | . 2 9 3 7 Power 5 | . 2 1 2 . Propulsion 9 | . . 5 1 3 Utility 4 | . . 1 . 3 Weapon 3 | . . 2 . 1 Highest Loss Streak 6 | . 1 4 1 6 To Critical Strikes . | . . . . . Average Slot Usage (%) 94 | . 99 98 85 58 Engine 10 | . 13 9 8 . Treads 18 | . 28 17 . . Leg 2 | . . 2 11 . Flight 2 | . . . 6 20 Device 4 | . 1 2 17 12 Storage 11 | . 14 11 6 . Processor 16 | . 11 27 9 9 Hackware 3 | . . 2 9 14 Energy Gun 11 | . 17 6 14 2 Energy Cannon 1 | . . 3 . . Ballistic Gun 8 | . 10 10 . . Naked Turns . | . . . . . Heaviest Build 37 | 12 31 36 37 5 Greatest Support 40 | 40 40 40 27 11 Greatest Overweight (x) 4 | . . 4 3 . Average Overweight (x) . | . . . . . Largest Inventory Capacity 15 | 8 15 15 15 5 Average Capacity 12 | 5 12 15 12 5 Most Carried 15 | 4 15 15 13 5 Average Carried 10 | 2 9 13 9 4 Final Capacity 15 | 8 15 15 5 5 Final Carried 15 | 4 15 14 3 4 Class Distribution -------------------- 60% | Mutant 31% | Scavenger-Mutant 4% | Scavenger-Sprinter 3% | Infiltrator-Mutant Dominant Class ---------------- Mutant | -10/Materials Scavenger-Mutant | -9/Materials Scavenger-Mutant | -8/Materials Scavenger-Sprinter | -8/Storage Resources | -11 -10 -9 -8 -8 ----------- Run | Yrd Mat Mat Mat Sto Matter Collected 1333 | 145 485 574 25 104 Remotely . | . . . . . Salvage Created 1935 | . 485 1245 101 104 Parts 150 | . 29 101 8 12 Haulers Intercepted 5 | . 1 4 . . Recyclers Shooed 1 | . . 1 . . Parts Field Recycled . | . . . . . Retrieved Matter . | . . . . . Parts Self-Destructed . | . . . . . Prevented . | . . . . . Kills | -11 -10 -9 -8 -8 ------- Run | Yrd Mat Mat Mat Sto Combat Hostiles Destroyed 53 | . 13 33 5 2 Guns 35 | . 12 16 5 2 Cannons 9 | . . 9 . . AOE 8 | . . 8 . . Classes Destroyed 10 | . 6 3 1 . Worker 4 | . . 4 . . Builder 2 | . 1 1 . . Hauler 5 | . 1 4 . . Recycler 1 | . . 1 . . Operator 3 | . 1 2 . . Watcher 3 | . 1 2 . . Swarmer 18 | . 6 9 3 . Cutter 2 | . . . 2 . Grunt 25 | . 7 18 . . Sentry 8 | . . 6 . 2 Best Kill Streak 20 | . 3 20 3 2 Combat Bots Only 12 | . 3 12 3 2 Max Kills in Single Turn 4 | . 2 4 1 1 Gunslinging 1 | . . 1 . . Exploded 3 | . . 3 . . Melee . | . . . . . Uniques/NPCs Destroyed . | . . . . . Combat | -11 -10 -9 -8 -8 -------- Run | Yrd Mat Mat Mat Sto Hostile Shots Fired 331 | . 59 123 34 115 Missed 99 | . 10 24 8 57 Damage Taken 3192 | . 582 1449 351 810 Core 999 | . 103 346 52 498 Absorbed by Shields . | . . . . . Core Remaining (%) 57 | 100 58 13 . . Volleys Fired 122 | . 50 57 10 5 Largest 2 | . 2 2 2 2 Hottest 133 | . 100 133 112 122 Shots Fired 228 | . 91 112 19 6 Gun 194 | . 91 79 18 6 Cannon 26 | . . 26 . . Launcher 8 | . . 7 1 . Special . | . . . . . Kinetic 58 | . 14 44 . . Thermal 162 | . 77 61 18 6 Explosive 8 | . . 7 1 . Electromagnetic . | . . . . . Robot Hit Streak 11 | . 11 9 2 4 Robot Miss Streak 4 | . 3 4 3 2 Penetration Max . | . . . . . Secondary Targets 7 | . 1 5 1 . Max Gunslinging Chain 1 | . 1 1 1 . Shots Hit Robots 145 | . 62 72 7 4 Core Hits 95 | . 26 60 7 2 Critical Kills . | . . . . . Critical Parts Destroyed . | . . . . . Critical Strikes 9 | . 7 2 . . Burn 9 | . 7 2 . . Melee Attacks 9 | . . . 9 . Impact . | . . . . . Slashing 9 | . . . 9 . Piercing . | . . . . . Sneak Attacks . | . . . . . Combat Hostiles . | . . . . . Follow-up Attacks . | . . . . . Damage Inflicted 3918 | . 823 2863 152 80 Guns 1960 | . 811 931 138 80 Cannons 372 | . . 372 . . Explosions 1574 | . . 1560 14 . Melee . | . . . . . Ramming 12 | . 12 . . . Kinetic 729 | . 150 579 . . Thermal 1603 | . 661 724 138 80 Explosive 1574 | . . 1560 14 . Electromagnetic . | . . . . . Impact . | . . . . . Slashing . | . . . . . Piercing . | . . . . . Highest Corruption 12 | . 12 5 . . Average Corruption 5 | . 7 3 . . Corruption Purged . | . . . . . Corruption Blocked . | . . . . . Effects 62 | . 42 20 . . Message Errors 17 | . 13 4 . . Matter Fused 10 | . 8 2 . . Heat Flow Errors 8 | . 5 3 . . Energy Discharges 6 | . 5 1 . . Parts Fused 1 | . . 1 . . Data Loss (minor) 11 | . 6 5 . . Data Loss (major) 3 | . 2 1 . . Misfires 2 | . . 2 . . Alerts 2 | . 1 1 . . Weapon Failures 2 | . 2 . . . Overload Shots . | . . . . . Overflow Damage 147 | . . 147 . . Projectiles 17 | . . 17 . . Explosions 130 | . . 130 . . Melee . | . . . . . Knockbacks . | . . . . . Impact . | . . . . . Kinetic . | . . . . . Secondary . | . . . . . Self-Inflicted Damage 318 | . . 318 . . Shots 7 | . . 7 . . Rammed 2 | . 2 . . . Targets Rammed 2 | . 2 . . . Kicked . | . . . . . Crushed . | . . . . . Highest Temperature 424 | . 424 331 180 33 Average Temperature 113 | . 151 85 70 9 Received Heat Transfer 999 | . 267 381 . 351 Effects 5 | . 3 2 . . Shutdowns 1 | . 1 . . . Energy Bleed 1 | . 1 . . . Interference 2 | . . 2 . . Short Circuit 1 | . 1 . . . Siege Activations . | . . . . . Robots Corrupted . | . . . . . Combat Hostiles . | . . . . . Parts Fried . | . . . . . Impact Corruptions . | . . . . . Robots Melted 1 | . 1 . . . Combat Hostiles 1 | . 1 . . . Parts Melted 9 | . 7 1 1 . Heat Transferred 4551 | . 2479 1628 296 148 Parts Sabotaged . | . . . . . Parts Stolen . | . . . . . Parts Stripped . | . . . . . Power Chain Reactions . | . . . . . Alert | -11 -10 -9 -8 -8 ------- Run | Yrd Mat Mat Mat Sto Peak Influence 600 | . 205 600 126 240 Initial 126 | . . 27 126 . Average 130 | . 85 229 25 122 Maximum Alert Level 2 | . 1 2 . 1 Low Security (%) 80 | 100 86 66 100 79 Level 1 8 | . 13 3 . 20 Level 2 10 | . . 29 . . Level 3 . | . . . . . Level 4 . | . . . . . Level 5 . | . . . . . High Security . | . . . . . Max Security . | . . . . . Squads Dispatched 12 | . 2 5 3 2 Investigation 2 | . . 1 . 1 Extermination . | . . . . . Reinforcement 9 | . 2 3 3 1 Assault 1 | . . 1 . . Garrison . | . . . . . Intercept . | . . . . . Searches Triggered . | . . . . . Construction Impeded . | . . . . . Haulers Reinforced . | . . . . . Active Scanning Responses . | . . . . . Cargo Convoy Interrupts . | . . . . . Stealth | -11 -10 -9 -8 -8 --------- Run | Yrd Mat Mat Mat Sto Distress Signals 10 | . 3 3 . 4 Communications Jammed . | . . . . . Distress Signals . | . . . . . Times Spotted 115 | . 30 47 11 27 Peak Tracking Total 13 | . 5 13 3 12 Tactical Retreats 10 | . 1 1 3 5 Traps | -11 -10 -9 -8 -8 ------- Run | Yrd Mat Mat Mat Sto Traps Triggered 11 | . 8 3 . . Indirectly . | . . . . . Trap Hack Attempts 4 | . . 4 . . Triggered . | . . . . . Disarmed . | . . . . . Reprogrammed 1 | . . 1 . . Reused 1 | . . 1 . . Traps Extracted . | . . . . . Installed . | . . . . . Triggered 1 | . . 1 . . Machines | -11 -10 -9 -8 -8 ---------- Run | Yrd Mat Mat Mat Sto Machines Disabled 5 | . . 5 . . Max in Single Turn 2 | . . 2 . . Machines Repaired . | . . . . . Machines Dismantled . | . . . . . Machines Sabotaged . | . . . . . Overloaded Fab Kills . | . . . . . Hacking | -11 -10 -9 -8 -8 --------- Run | Yrd Mat Mat Mat Sto Machines Accessed 18 | . 6 6 1 5 Terminals 12 | . 4 3 1 4 Fabricators . | . . . . . Repair Stations . | . . . . . Recycling Units 4 | . 2 2 . . Scanalyzers 1 | . . 1 . . Garrison Access 1 | . . . . 1 Total Hacks 48 | . 15 15 4 14 Successful 20 | . 6 5 2 7 Failed 28 | . 9 10 2 7 Catastrophic 4 | . 1 3 . . Database Lockouts . | . . . . . Manual 41 | . 15 13 4 9 Terminals 39 | . 12 10 4 13 Fabricators . | . . . . . Repair Stations . | . . . . . Recycling Units 6 | . 3 3 . . Scanalyzers 2 | . . 2 . . Garrison Access 1 | . . . . 1 Terminal Hacks 9 | . 1 2 1 5 Open Door 2 | . . . . 2 Unreport Threat 6 | . . 2 1 3 Recall Investigation 1 | . 1 . . . Fabricator Hacks . | . . . . . Repair Station Hacks . | . . . . . Recycling Unit Hacks . | . . . . . Scanalyzer 2 | . . 2 . . Insert Component 1 | . . 1 . . Analyze 1 | . . 1 . . Garrison Access Hacks 1 | . . . . 1 Unlock Access 1 | . . . . 1 Unauthorized Hacks 8 | . 5 1 1 1 Terminals 5 | . 3 . 1 1 Botnet 5 | . 3 . 1 1 Fabricators . | . . . . . Repair Stations . | . . . . . Recycling Units 3 | . 2 1 . . Reject 3 | . 2 1 . . Scanalyzers . | . . . . . Garrison Access . | . . . . . Data Cores Recovered 1 | . . 1 . . Used . | . . . . . Hacking Detections 13 | . 5 5 1 2 Full Trace Events 3 | . 1 1 . 1 Feedback Events . | . . . . . Feedback Blocked . | . . . . . Robot Schematics Acquired . | . . . . . Robots Built . | . . . . . Authchips . | . . . . . Time . | . . . . . Total Robot Build Rating . | . . . . . Part Schematics Acquired 1 | . . 1 . . Parts Built . | . . . . . Authchips . | . . . . . Time . | . . . . . Total Part Build Rating . | . . . . . Parts Repaired . | . . . . . Time . | . . . . . Parts Recycled . | . . . . . Recycled Matter . | . . . . . Retrieved Matter . | . . . . . Retrieved Components . | . . . . . Parts Scanalyzed 1 | . . 1 . . Part Schematics Acquired 1 | . . 1 . . Parts Damaged . | . . . . . Bothacking | -11 -10 -9 -8 -8 ------------ Run | Yrd Mat Mat Mat Sto Used RIF Installer . | . . . . . Robots Hacked . | . . . . . Non-combat . | . . . . . Combat . | . . . . . Robot Hacks Applied . | . . . . . Relay Couplers Released . | . . . . . Fabnet Peak Effective % . | . . . . . Robots Rewired . | . . . . . Allies Hacked . | . . . . . Hacks Repelled . | . . . . . Allies | -11 -10 -9 -8 -8 -------- Run | Yrd Mat Mat Mat Sto Total Allies . | . . . . . Largest Group . | . . . . . Highest-Rated Group . | . . . . . Highest-Rated Ally . | . . . . . Total Orders . | . . . . . Ally Attacks . | . . . . . Total Damage . | . . . . . Kills . | . . . . . Allies Corrupted . | . . . . . Allies Melted . | . . . . . Intel | -11 -10 -9 -8 -8 ------- Run | Yrd Mat Mat Mat Sto Robot Analysis Total . | . . . . . Derelict Logs Recovered . | . . . . . Drone Launches . | . . . . . Drone Recoveries . | . . . . . Exploration | -11 -10 -9 -8 -8 ------------- Run | Yrd Mat Mat Mat Sto Turns Passed 4005 | 75 1728 1437 506 259 Spaces Moved 2075 | 43 871 549 192 420 Core 7 | 5 . . . 2 Treads 1377 | 38 871 468 . . Legs 131 | . . 74 57 . Wheels . | . . . . . Hover 7 | . . 7 . . Flight 553 | . . . 135 418 Fastest Speed 26 | 50 160 160 30 26 Average Speed 132 | 147 160 168 114 35 Slowest Speed 330 | 160 160 330 330 50 Overloaded Moves 14 | . . . . 14 Propulsion Burnouts . | . . . . . Robots Hopped 23 | . . . 3 20 Cave-ins Triggered . | . . . . . Exploration Rate (%) 41 | 5 82 48 7 63 Regions Visited 4 Branch Regions 1 Pre-discovered Areas . | . . . . . Known Exits Taken 2 | . . 1 1 . Unknown Exits Taken 2 | 1 1 . . . Scrap Searched . | . . . . . Spaces Dug 1 | . . . 1 . Terrain Destroyed 59 | . . 48 11 . Melee 1 | . . . 1 . Projectile . | . . . . . AOE 58 | . . 48 10 . Terrain Rammed . | . . . . . Walls Destroyed . | . . . . . Machines Disabled . | . . . . . Actions | -11 -10 -9 -8 -8 --------- Run | Yrd Mat Mat Mat Sto Total 3075 | 52 1120 957 442 504 Wait 700 | . 126 278 208 88 Move 2036 | 42 870 548 187 389 Hop 12 | . . . 1 11 Pick Up 57 | 4 32 16 4 1 Fast Attach 26 | 6 4 9 5 2 Attach 19 | . 1 10 4 4 Detach 17 | . 2 7 4 4 Swap 19 | . 7 10 2 . Drop 52 | . 26 18 8 . Fire 122 | . 50 57 10 5 Melee 9 | . . . 9 . Ram . | . . . . . Kick . | . . . . . Crush 2 | . 2 . . . Escape Stasis . | . . . . . Rewire . | . . . . . Trap 4 | . . 4 . . Miscellaneous . | . . . . . Route ------- -11/Scrapyard -10/Materials (discovered 4 exits: *Mat x3 / [*Min]) -9/Materials (discovered 3 exits: *Mat x2 / [*Min]) -8/Materials -8/Storage (discovered 1 exit: Gar) History --------- Turn | Location | Event 31 | -11/Scrapyard | Discovered new exit (range 16) 76 | -11/Scrapyard | Entered Materials 313 | -10/Materials | Build established: Mutant 430 | -10/Materials | Discovered new exit (range 16) 1116 | -10/Materials | Discovered new exit (range 10) 1326 | -10/Materials | System corruption reached 10% 1348 | -10/Materials | Discovered new exit (range 16) 1652 | -10/Materials | Discovered new exit (range 8) 1804 | -10/Materials | Entered another Materials area 1804 | -9/Materials | Evolved 2 slots: Utility x2 2307 | -9/Materials | Discovered new exit (range 10) 2528 | -9/Materials | Build established: Scavenger-Mutant 2735 | -9/Materials | Discovered new exit (range 8) 2780 | -9/Materials | Core integrity fell below 50% 2856 | -9/Materials | Destroyed 12 combat bots 2862 | -9/Materials | Lost 4 parts (3n1u) 3004 | -9/Materials | First assault squad dispatched 3044 | -9/Materials | Core integrity fell below 20% 3072 | -9/Materials | Lost 3 parts (1p1n1w) 3093 | -9/Materials | Discovered new exit (range 10) 3235 | -9/Materials | Identified exit to Materials 3241 | -9/Materials | Entered another Materials area 3241 | -8/Materials | Evolved 2 slots: Propulsion x1, Utility x1 3242 | -8/Materials | Discovered new exit (range 15) 3648 | -8/Materials | Identified exit to Storage 3747 | -8/Materials | Entered Storage 3949 | -8/Storage | Core integrity fell below 50% 3984 | -8/Storage | Lost 6 parts (2n3u1w) 3989 | -8/Storage | Core integrity fell below 20% 4000 | -8/Storage | Identified exit to Garrison 4006 | -8/Storage | Destroyed by G-47 Trooper with Particle Gun Last Messages --------------- 03952_ K-01 Serf collects debris. 03953_ Adv. Beam Rifle destroyed. 03955_ K-01 Serf collects debris. 03957_ R-06 Scavenger collects Unknown Device. 03958_ K-01 Serf collects debris. 03973_ Connecting with Terminal... >>Alert(Purge) Purged threat record, alert level lowered. 03973_ ALERT: Suspicious activity at Terminal S015. Dispatching Investigation squad. 03976_ Connecting with Door Terminal... >>Open(Door) Sealed Heavy Doors opened. 03991_ Connecting with Door Terminal... 04000_ Connecting with Garrison Access... >>Unlock Access door unlocked. 04000_ EXIT=UNLOCKED: GARRISON 04001_ Connecting with Garrison Access... 04002_ Imp. Flight Unit destroyed. Map ----- +----------------------------------------------------+ | | | | | | | | | | | | | | | | | | | ????????????????????????????????????????????????? | | ????????????????????????????????????????????????? | | ????????????????????????????????????????????????? | | ????????????????????????????????????????????????? | | ????????????????????????????????????????????????? | | ????????????????????????????????????????????????? | | ????????????????????????????????????????????????? | | ????????????????????????????????????????????????? | | ????????????????????????????????????????????????? | | ?????????????"####+###??????????????????????????? | | ?????????????" ##############?????????????? | | ?????????????" + #?????????????? | | ?????????????"#T### # """"" #?????????????? | | ??????????????##??# # g""""" ##????????????? | | ??????????????????# ; g""""" Y #????????????? | | ??????????????????# # g ##????????????? | | ????????????####### ##"@"#########?????????????? | | ????????????###### #"G"#?????????????????????? | | ????????????# # " #?????????????????????? | | ????????????# #####?????????????????????? | | ???????????## ### #?????????????????????????? | | ?????? #### ####+#####???????????????????????? | | ?????###+#### # #???????????????????????? | | ?????### # "" #???????????????????????? | | ?????##" # "Y #???????????????????????? | | ?????##T """ # "" #???????????????????????? | | ?????##" """ # #???????????????????????? | | ?????### """ # """#???????????????????????? | | ??????## # """#???????????????????????? | | ?????###^ # """#???????????????????????? | | ?????### """ # #???????????????????????? | | ?????##T """ ###+######???????????????????????? | | ?????### """ T## ##???????????????????????????? | | ????#### ### ##???????????????????????????? | | ????#### ### ###??????????????????????????? | | ????## #T###????????????????????????? | | ????## + /#????????????????????????? | | ????## #####????????????????????????? | | ????## #####+##+###??????????????????????????## | | ????## ## ##??????????????????????????## | | ????## ##??"""?? ##??????????????????????????## | +----------------------------------------------------+ Best States ------------- Heat Dissipation 38 Energy Generation 14 Energy Capacity 280 Matter Stores 300 Matter Capacity 300 Sight Range 16 Terrain Scan Density 10 ECM Strength 1 Evasion (%) 64 Targeting Accuracy 5 Recoil Reduction 2 Offensive Hacking 10 Authchip Count 2 Item Schematics ----------------- Datajack | -9/Materials | Scanalyzed Robot Schematics ------------------ None Fabricated ------------ Nothing Alien Tech Used ----------------- None Achievements -------------- Cya! Hehehe It's Just You Significant Disruption Challenges ------------ None Game ------ Seed CompactLatentMicrothruster Manual? 0 Play Time 00:46:51 Cumulative 17.0 hours Start 2024.04.17 @ 09:53:28 End 2024.04.17 @ 20:53:42 Sessions 3 Manual Loads 0 Difficulty Rogue Special Mode None Game No. 29 Rogue 27 Adventurer 0 Explorer 2 Win Type - Total 0 Types 0/0/0/0/0/0/0/0/0 Lore% 7 Gallery% 21 Achievement% 22 Wizard Run 0 Options --------- Layout 2 ASCII 0 Keyboard 1 Movement Vi Keybinds 0 Fullscreen 2 Font 32/SmallcapsGlow Map View 50x44 Zoom Use 1% Tactical HUD 1 Map Filters NONE Filters NONE Steam 1 RUN: e929e14a-ca86-46b4-a1fb-609cc797d40f